[Event "Polofinale MCR juniorek 2023"]
[Site "Czech Republic"]
[Date "2023.11.15"]
[Round "6.4"]
[White "Dudova, Pavlina"]
[Black "Stavova, Helena"]
[Result "1/2-1/2"]
[TimeControl "90 min per 40 moves + 15 min + 30 sec / move from move 1"]
[WhiteFideId "394629"]
[BlackFideId "23714751"]
[WhiteElo "1763"]
[BlackElo "1425"]

1. e4 {[%clk 01:30:56]} {[%emt 00:00:03]} e5 {[%clk 01:30:52]} {[%emt
00:00:09]} 2. Nf3 {[%clk 01:31:20]} {[%emt 00:00:05]} Nc6 {[%clk 01:31:14]}
{[%emt 00:00:09]} 3. Bb5 {[%clk 01:31:41]} {[%emt 00:00:09]} Nf6 {[%clk
01:31:19]} {[%emt 00:00:25]} 4. O-O {[%clk 01:31:37]} {[%emt 00:00:34]} Nxe4
{[%clk 01:31:22]} {[%emt 00:00:28]} 5. Re1 {[%clk 01:31:41]} {[%emt 00:00:25]}
Nd6 {[%clk 01:31:26]} {[%emt 00:00:26]} 6. Nxe5 {[%clk 01:31:48]} {[%emt
00:00:23]} Be7 {[%clk 01:31:28]} {[%emt 00:00:28]} 7. Bf1 {[%clk 01:31:21]}
{[%emt 00:00:57]} Nxe5 {[%clk 01:30:13]} {[%emt 00:01:45]} 8. Rxe5 {[%clk
01:31:38]} {[%emt 00:00:12]} O-O {[%clk 01:30:28]} {[%emt 00:00:15]} 9. d4
{[%clk 01:31:59]} {[%emt 00:00:10]} Bf6 {[%clk 01:30:06]} {[%emt 00:00:52]} 10.
Re1 {[%clk 01:32:09]} {[%emt 00:00:19]} Nf5 {[%clk 01:29:57]} {[%emt 00:00:40]}
11. c3 {[%clk 01:32:19]} {[%emt 00:00:21]} d5 {[%clk 01:28:00]} {[%emt
00:02:26]} 12. Bf4 {[%clk 01:31:19]} {[%emt 00:01:30]} Be6 {[%clk 01:19:51]}
{[%emt 00:08:39]} 13. Bd3 {[%clk 01:30:38]} {[%emt 00:01:10]} g6 {[%clk
01:15:33]} {[%emt 00:04:48]} 14. Nd2 {[%clk 01:29:38]} {[%emt 00:01:30]} Bg7
{[%clk 01:10:12]} {[%emt 00:05:51]} 15. Nf3 {[%clk 01:26:17]} {[%emt 00:03:51]}
Nd6 {[%clk 01:05:41]} {[%emt 00:05:02]} 16. Qd2 {[%clk 01:23:09]} {[%emt
00:03:36]} Re8 {[%clk 00:57:37]} {[%emt 00:08:36]} 17. Re2 {[%clk 01:20:54]}
{[%emt 00:02:43]} Bg4 {[%clk 00:45:05]} {[%emt 00:13:04]} 18. Rxe8+ {[%clk
01:19:11]} {[%emt 00:02:13]} Nxe8 {[%clk 00:44:52]} {[%emt 00:00:44]} 19. Ne5
{[%clk 01:18:57]} {[%emt 00:00:43]} Be6 {[%clk 00:35:57]} {[%emt 00:09:23]} 20.
Re1 {[%clk 01:13:27]} {[%emt 00:06:01]} Nd6 {[%clk 00:33:20]} {[%emt 00:03:07]}
21. Bh6 {[%clk 01:10:09]} {[%emt 00:03:48]} Bf5 {[%clk 00:31:52]} {[%emt
00:01:59]} 22. Bxg7 {[%clk 01:02:20]} {[%emt 00:08:19]} Kxg7 {[%clk 00:32:09]}
{[%emt 00:00:12]} 23. Qe2 {[%clk 01:00:31]} {[%emt 00:02:18]} Qe7 {[%clk
00:25:32]} {[%emt 00:07:08]} 24. Bxf5 {[%clk 00:56:37]} {[%emt 00:04:24]}
1/2-1/2

[Event "Polofinale MCR juniorek 2023"]
[Site "Czech Republic"]
[Date "2023.11.15"]
[Round "6.5"]
[White "Petirova, Iva"]
[Black "Hosova, Sandra"]
[Result "0-1"]
[TimeControl "90 min per 40 moves + 15 min + 30 sec / move from move 1"]
[WhiteFideId "23741961"]
[BlackFideId "397717"]
[WhiteElo "1636"]
[BlackElo "1730"]

1. e4 {[%clk 01:30:56]} {[%emt 00:00:03]} c5 {[%clk 01:30:46]} {[%emt
00:00:13]} 2. Nf3 {[%clk 01:31:14]} {[%emt 00:00:13]} Nc6 {[%clk 01:31:05]}
{[%emt 00:00:11]} 3. Bb5 {[%clk 01:31:31]} {[%emt 00:00:12]} d6 {[%clk
01:31:02]} {[%emt 00:00:33]} 4. Bxc6+ {[%clk 01:31:37]} {[%emt 00:00:25]} bxc6
{[%clk 01:31:23]} {[%emt 00:00:10]} 5. O-O {[%clk 01:31:02]} {[%emt 00:01:04]}
Bg4 {[%clk 01:30:32]} {[%emt 00:01:21]} 6. h3 {[%clk 01:29:19]} {[%emt
00:02:12]} Bh5 {[%clk 01:30:23]} {[%emt 00:00:39]} 7. d3 {[%clk 01:29:19]}
{[%emt 00:00:31]} Nf6 {[%clk 01:29:38]} {[%emt 00:01:15]} 8. Re1 {[%clk
01:28:33]} {[%emt 00:01:15]} e5 {[%clk 01:27:41]} {[%emt 00:02:27]} 9. Na3
{[%clk 01:25:45]} {[%emt 00:03:19]} Nd7 {[%clk 01:24:46]} {[%emt 00:03:25]} 10.
Nc4 {[%clk 01:22:39]} {[%emt 00:03:36]} Qf6 {[%clk 01:22:09]} {[%emt 00:03:07]}
11. g4 {[%clk 01:16:34]} {[%emt 00:06:35]} Bg6 {[%clk 01:22:10]} {[%emt
00:00:29]} 12. Ne3 {[%clk 01:10:58]} {[%emt 00:06:06]} h6 {[%clk 01:15:38]}
{[%emt 00:07:01]} 13. Kh2 {[%clk 01:07:31]} {[%emt 00:03:57]} Be7 {[%clk
00:57:43]} {[%emt 00:18:26]} 14. Rg1 {[%clk 01:03:20]} {[%emt 00:04:41]} Qe6
{[%clk 00:51:51]} {[%emt 00:06:22]} 15. Qe2 {[%clk 00:55:54]} {[%emt 00:07:55]}
h5 {[%clk 00:43:39]} {[%emt 00:08:42]} 16. Nf5 {[%clk 00:49:53]} {[%emt
00:06:31]} Rh7 {[%clk 00:42:20]} {[%emt 00:01:49]} 17. Ng5 {[%clk 00:39:04]}
{[%emt 00:11:19]} Bxg5 {[%clk 00:41:06]} {[%emt 00:01:45]} 18. Bxg5 {[%clk
00:39:28]} {[%emt 00:00:06]} f6 {[%clk 00:28:30]} {[%emt 00:13:06]} 19. Be3
{[%clk 00:36:31]} {[%emt 00:03:27]} hxg4 {[%clk 00:25:51]} {[%emt 00:03:10]} 20.
Qxg4 {[%clk 00:36:48]} {[%emt 00:00:13]} Bxf5 {[%clk 00:22:49]} {[%emt
00:03:32]} 21. exf5 {[%clk 00:36:21]} {[%emt 00:00:57]} Qf7 {[%clk 00:23:09]}
{[%emt 00:00:09]} 22. Qg6 {[%clk 00:33:19]} {[%emt 00:03:32]} Nf8 {[%clk
00:22:06]} {[%emt 00:01:34]} 23. Qg2 {[%clk 00:30:47]} {[%emt 00:03:02]} Qc7
{[%clk 00:19:24]} {[%emt 00:03:12]} 24. f4 {[%clk 00:29:41]} {[%emt 00:01:36]}
exf4 {[%clk 00:16:06]} {[%emt 00:03:48]} 25. Bxf4 {[%clk 00:30:02]} {[%emt
00:00:09]} O-O-O {[%clk 00:16:04]} {[%emt 00:00:32]} 26. Qg3 {[%clk 00:25:25]}
{[%emt 00:05:07]} Qd7 {[%clk 00:16:00]} {[%emt 00:00:34]} 27. Rae1 {[%clk
00:23:25]} {[%emt 00:02:30]} Qxf5 {[%clk 00:11:40]} {[%emt 00:04:50]} 28. Re7
{[%clk 00:23:33]} {[%emt 00:00:21]} Ng6 {[%clk 00:09:25]} {[%emt 00:02:45]} 29.
Re4 {[%clk 00:14:26]} {[%emt 00:09:37]} Rdh8 {[%clk 00:07:14]} {[%emt
00:02:41]} 30. Kg2 {[%clk 00:13:08]} {[%emt 00:01:47]} Rxh3 {[%clk 00:07:23]}
{[%emt 00:00:21]} 0-1

[Event "Polofinale MCR juniorek 2023"]
[Site "Czech Republic"]
[Date "2023.11.15"]
[Round "6.6"]
[White "Nagyova, Daniela"]
[Black "Nova, Anezka"]
[Result "1-0"]
[TimeControl "90 min per 40 moves + 15 min + 30 sec / move from move 1"]
[WhiteFideId "390070"]
[BlackFideId "23727144"]
[WhiteElo "1872"]
[BlackElo "1578"]

1. e4 {[%clk 01:30:53]} {[%emt 00:00:06]} e6 {[%clk 01:30:56]} {[%emt
00:00:05]} 2. d4 {[%clk 01:31:08]} {[%emt 00:00:15]} d5 {[%clk 01:31:22]}
{[%emt 00:00:04]} 3. Nc3 {[%clk 01:31:09]} {[%emt 00:00:29]} Bb4 {[%clk
01:31:48]} {[%emt 00:00:04]} 4. e5 {[%clk 01:31:18]} {[%emt 00:00:20]} c5
{[%clk 01:32:14]} {[%emt 00:00:04]} 5. Bd2 {[%clk 01:31:19]} {[%emt 00:00:28]}
Ne7 {[%clk 01:32:28]} {[%emt 00:00:16]} 6. Nb5 {[%clk 01:31:01]} {[%emt
00:00:48]} Bxd2+ {[%clk 01:32:42]} {[%emt 00:00:16]} 7. Qxd2 {[%clk 01:31:22]}
{[%emt 00:00:09]} O-O {[%clk 01:32:58]} {[%emt 00:00:14]} 8. f4 {[%clk
01:30:38]} {[%emt 00:01:14]} a6 {[%clk 01:32:57]} {[%emt 00:00:32]} 9. Nd6
{[%clk 01:29:44]} {[%emt 00:01:24]} cxd4 {[%clk 01:32:56]} {[%emt 00:00:32]} 10.
Nf3 {[%clk 01:28:17]} {[%emt 00:01:56]} Nbc6 {[%clk 01:33:06]} {[%emt
00:00:20]} 11. O-O-O {[%clk 01:27:54]} {[%emt 00:00:52]} f6 {[%clk 01:29:56]}
{[%emt 00:03:40]} 12. Nxc8 {[%clk 01:26:05]} {[%emt 00:02:20]} Rxc8 {[%clk
01:29:28]} {[%emt 00:00:59]} 13. exf6 {[%clk 01:25:21]} {[%emt 00:01:14]} Rxf6
{[%clk 01:25:47]} {[%emt 00:04:11]} 14. Bd3 {[%clk 01:22:32]} {[%emt 00:03:19]}
Qd6 {[%clk 01:19:27]} {[%emt 00:06:51]} 15. g3 {[%clk 01:17:10]} {[%emt
00:05:51]} b5 {[%clk 01:11:30]} {[%emt 00:08:28]} 16. Rhe1 {[%clk 01:12:00]}
{[%emt 00:05:40]} Ng6 {[%clk 00:56:30]} {[%emt 00:15:30]} 17. Re2 {[%clk
01:04:51]} {[%emt 00:07:39]} Re8 {[%clk 00:47:45]} {[%emt 00:09:15]} 18. Rde1
{[%clk 00:57:46]} {[%emt 00:07:35]} h6 {[%clk 00:39:29]} {[%emt 00:08:46]} 19.
h4 {[%clk 00:48:10]} {[%emt 00:10:06]} Nf8 {[%clk 00:35:04]} {[%emt 00:04:55]}
20. Ne5 {[%clk 00:43:19]} {[%emt 00:05:21]} Qc7 {[%clk 00:27:56]} {[%emt
00:07:39]} 21. Nxc6 {[%clk 00:34:50]} {[%emt 00:09:00]} Qxc6 {[%clk 00:25:36]}
{[%emt 00:02:49]} 22. g4 {[%clk 00:33:45]} {[%emt 00:01:34]} Qc7 {[%clk
00:19:45]} {[%emt 00:06:22]} 23. f5 {[%clk 00:29:38]} {[%emt 00:04:36]} e5
{[%clk 00:18:34]} {[%emt 00:01:41]} 24. g5 {[%clk 00:29:24]} {[%emt 00:00:44]}
hxg5 {[%clk 00:16:42]} {[%emt 00:02:22]} 25. hxg5 {[%clk 00:28:09]} {[%emt
00:01:44]} Rc6 {[%clk 00:15:57]} {[%emt 00:01:14]} 26. g6 {[%clk 00:24:06]}
{[%emt 00:04:33]} e4 {[%clk 00:13:10]} {[%emt 00:03:18]} 27. Rh2 {[%clk
00:22:21]} {[%emt 00:02:14]} exd3 {[%clk 00:08:39]} {[%emt 00:05:02]} 28. Rxe8
{[%clk 00:21:51]} {[%emt 00:01:00]} Rxc2+ {[%clk 00:05:38]} {[%emt 00:03:30]}
29. Qxc2 {[%clk 00:22:04]} {[%emt 00:00:17]} dxc2 {[%clk 00:03:43]} {[%emt
00:02:25]} 30. Rh8+ {[%clk 00:22:21]} {[%emt 00:00:13]} 1-0

[Event "Polofinale MCR juniorek 2023"]
[Site "Czech Republic"]
[Date "2023.11.15"]
[Round "6.7"]
[White "Havelkova, Beata"]
[Black "Sikorova, Jana"]
[Result "1-0"]
[TimeControl "90 min per 40 moves + 15 min + 30 sec / move from move 1"]
[WhiteFideId "23709405"]
[BlackFideId "392472"]
[WhiteElo "1736"]
[BlackElo "1662"]

1. e4 {[%clk 01:30:58]} c5 {[%clk 01:30:51]} {[%emt 00:00:09]} 2. c3 {[%clk
01:31:26]} {[%emt 00:00:03]} d5 {[%clk 01:31:08]} {[%emt 00:00:12]} 3. exd5
{[%clk 01:31:52]} {[%emt 00:00:04]} Qxd5 {[%clk 01:31:30]} {[%emt 00:00:08]} 4.
d4 {[%clk 01:32:17]} {[%emt 00:00:05]} e6 {[%clk 01:31:46]} {[%emt 00:00:14]} 5.
Nf3 {[%clk 01:32:41]} {[%emt 00:00:05]} Nf6 {[%clk 01:32:05]} {[%emt 00:00:11]}
6. Bd3 {[%clk 01:32:33]} {[%emt 00:00:38]} Nc6 {[%clk 01:31:38]} {[%emt
00:00:57]} 7. O-O {[%clk 01:32:51]} {[%emt 00:00:12]} Be7 {[%clk 01:31:19]}
{[%emt 00:00:49]} 8. Be3 {[%clk 01:32:19]} {[%emt 00:01:03]} cxd4 {[%clk
01:31:08]} {[%emt 00:00:40]} 9. cxd4 {[%clk 01:32:10]} {[%emt 00:00:38]} O-O
{[%clk 01:31:03]} {[%emt 00:00:35]} 10. Nc3 {[%clk 01:32:15]} {[%emt 00:00:26]}
Qd8 {[%clk 01:30:52]} {[%emt 00:00:41]} 11. a3 {[%clk 01:31:37]} {[%emt
00:01:09]} b6 {[%clk 01:28:41]} {[%emt 00:02:40]} 12. Qe2 {[%clk 01:30:03]}
{[%emt 00:02:03]} Bb7 {[%clk 01:27:25]} {[%emt 00:01:46]} 13. Rad1 {[%clk
01:29:53]} {[%emt 00:00:40]} Rc8 {[%clk 01:25:48]} {[%emt 00:02:08]} 14. Rfe1
{[%clk 01:27:15]} {[%emt 00:03:09]} Re8 {[%clk 01:22:41]} {[%emt 00:03:36]} 15.
Bb1 {[%clk 01:25:37]} {[%emt 00:02:07]} Na5 {[%clk 01:16:43]} {[%emt 00:06:28]}
16. Bg5 {[%clk 01:16:01]} {[%emt 00:10:06]} Nd5 {[%clk 00:56:28]} {[%emt
00:20:45]} 17. Ne4 {[%clk 01:12:37]} {[%emt 00:03:54]} h6 {[%clk 00:54:26]}
{[%emt 00:02:31]} 18. Bc1 {[%clk 01:01:20]} {[%emt 00:11:47]} Nb3 {[%clk
00:51:42]} {[%emt 00:03:14]} 19. Be3 {[%clk 01:00:17]} {[%emt 00:01:33]} Nxe3
{[%clk 00:45:07]} {[%emt 00:07:07]} 20. fxe3 {[%clk 01:00:24]} {[%emt
00:00:23]} g6 {[%clk 00:43:08]} {[%emt 00:02:28]} 21. Ne5 {[%clk 00:55:25]}
{[%emt 00:05:30]} Kg7 {[%clk 00:35:55]} {[%emt 00:07:43]} 22. Rf1 {[%clk
00:51:43]} {[%emt 00:04:13]} f6 {[%clk 00:33:02]} {[%emt 00:03:22]} 23. Nxf6
{[%clk 00:48:21]} {[%emt 00:03:52]} Bxf6 {[%clk 00:31:37]} {[%emt 00:01:54]} 24.
Qd3 {[%clk 00:48:15]} {[%emt 00:00:36]} 1-0

[Event "Polofinale MCR juniorek 2023"]
[Site "Czech Republic"]
[Date "2023.11.15"]
[Round "6.8"]
[White "Vavrinkova, Marie"]
[Black "Nespora, Tatana"]
[Result "1-0"]
[TimeControl "90 min per 40 moves + 15 min + 30 sec / move from move 1"]
[WhiteFideId "392154"]
[BlackFideId "392286"]
[WhiteElo "1492"]
[BlackElo "1690"]

1. d4 {[%clk 01:30:52]} {[%emt 00:00:07]} Nf6 {[%clk 01:30:41]} {[%emt
00:00:20]} 2. c4 {[%clk 01:30:59]} {[%emt 00:00:24]} g6 {[%clk 01:30:58]}
{[%emt 00:00:13]} 3. Nc3 {[%clk 01:30:44]} {[%emt 00:00:45]} Bg7 {[%clk
01:31:01]} {[%emt 00:00:26]} 4. e4 {[%clk 01:30:32]} {[%emt 00:00:42]} d6
{[%clk 01:30:52]} {[%emt 00:00:39]} 5. h3 {[%clk 01:29:53]} {[%emt 00:01:09]}
Nc6 {[%clk 01:22:59]} {[%emt 00:08:24]} 6. Be3 {[%clk 01:24:14]} {[%emt
00:06:09]} e5 {[%clk 01:19:59]} {[%emt 00:03:30]} 7. d5 {[%clk 01:21:48]}
{[%emt 00:02:56]} Nd4 {[%clk 01:18:19]} {[%emt 00:02:09]} 8. Nge2 {[%clk
01:13:40]} {[%emt 00:08:38]} Nxe2 {[%clk 01:17:40]} {[%emt 00:01:09]} 9. Bxe2
{[%clk 01:13:04]} {[%emt 00:01:06]} O-O {[%clk 01:18:00]} {[%emt 00:00:10]} 10.
g4 {[%clk 01:11:37]} {[%emt 00:01:57]} Bd7 {[%clk 01:10:26]} {[%emt 00:08:04]}
11. Rc1 {[%clk 01:05:22]} {[%emt 00:06:45]} a6 {[%clk 01:07:57]} {[%emt
00:02:59]} 12. h4 {[%clk 00:59:29]} {[%emt 00:06:23]} b5 {[%clk 01:07:15]}
{[%emt 00:01:13]} 13. g5 {[%clk 00:44:40]} {[%emt 00:15:18]} Ne8 {[%clk
01:07:25]} {[%emt 00:00:19]} 14. b3 {[%clk 00:40:44]} {[%emt 00:04:27]} c6
{[%clk 01:03:32]} {[%emt 00:04:23]} 15. dxc6 {[%clk 00:30:34]} {[%emt
00:10:40]} Bxc6 {[%clk 01:03:50]} {[%emt 00:00:11]} 16. Nd5 {[%clk 00:30:53]}
{[%emt 00:00:11]} Bxd5 {[%clk 00:59:36]} {[%emt 00:04:44]} 17. cxd5 {[%clk
00:31:07]} {[%emt 00:00:16]} Rc8 {[%clk 00:59:01]} {[%emt 00:01:05]} 18. Bg4
{[%clk 00:28:13]} {[%emt 00:03:25]} Rxc1 {[%clk 00:57:14]} {[%emt 00:02:17]} 19.
Qxc1 {[%clk 00:28:38]} {[%emt 00:00:06]} Qa5+ {[%clk 00:56:22]} {[%emt
00:01:22]} 20. Qd2 {[%clk 00:28:44]} {[%emt 00:00:24]} Qc7 {[%clk 00:55:36]}
{[%emt 00:01:15]} 21. Ke2 {[%clk 00:27:10]} {[%emt 00:02:04]} f5 {[%clk
00:53:40]} {[%emt 00:02:27]} 22. gxf6 {[%clk 00:26:32]} {[%emt 00:01:08]} Nxf6
{[%clk 00:49:58]} {[%emt 00:04:11]} 23. Rc1 {[%clk 00:24:54]} {[%emt 00:02:08]}
Qe7 {[%clk 00:48:41]} {[%emt 00:01:47]} 24. Be6+ {[%clk 00:24:22]} {[%emt
00:01:02]} Kh8 {[%clk 00:48:37]} {[%emt 00:00:34]} 25. f3 {[%clk 00:23:21]}
{[%emt 00:01:31]} Nh5 {[%clk 00:47:02]} {[%emt 00:02:05]} 26. Bg5 {[%clk
00:18:57]} {[%emt 00:04:55]} Nf4+ {[%clk 00:46:53]} {[%emt 00:00:39]} 27. Qxf4
{[%clk 00:18:15]} {[%emt 00:01:12]} Qa7 {[%clk 00:45:11]} {[%emt 00:02:13]} 28.
Qe3 {[%clk 00:17:38]} {[%emt 00:01:06]} Qb7 {[%clk 00:45:26]} {[%emt 00:00:15]}
29. Qc3 {[%clk 00:17:00]} {[%emt 00:01:09]} b4 {[%clk 00:45:20]} {[%emt
00:00:36]} 30. Qc6 {[%clk 00:16:54]} {[%emt 00:00:36]} Qa7 {[%clk 00:45:39]}
{[%emt 00:00:11]} 31. Qxd6 {[%clk 00:16:33]} {[%emt 00:00:51]} Qd4 {[%clk
00:46:01]} {[%emt 00:00:08]} 32. Rc2 {[%clk 00:16:03]} {[%emt 00:01:00]} Rxf3
{[%clk 00:44:33]} {[%emt 00:01:57]} 33. Rc8+ {[%clk 00:16:10]} {[%emt
00:00:23]} 1-0

[Event "Polofinale MCR juniorek 2023"]
[Site "Czech Republic"]
[Date "2023.11.15"]
[Round "6.9"]
[White "Taborska, Aneta"]
[Black "Bartova, Hana"]
[Result "0-1"]
[TimeControl "90 min per 40 moves + 15 min + 30 sec / move from move 1"]
[WhiteFideId "23733039"]
[BlackFideId "23732695"]
[WhiteElo "1165"]
[BlackElo "1270"]

1. e4 {[%clk 01:30:31]} {[%emt 00:00:28]} e5 {[%clk 01:30:08]} {[%emt
00:00:52]} 2. Nf3 {[%clk 01:30:52]} {[%emt 00:00:09]} Nf6 {[%clk 01:30:00]}
{[%emt 00:00:38]} 3. Bc4 {[%clk 01:28:46]} {[%emt 00:02:36]} Nc6 {[%clk
01:29:34]} {[%emt 00:00:56]} 4. d3 {[%clk 01:26:30]} {[%emt 00:02:47]} Bc5
{[%clk 01:29:08]} {[%emt 00:00:56]} 5. O-O {[%clk 01:26:33]} {[%emt 00:00:27]}
O-O {[%clk 01:29:18]} {[%emt 00:00:20]} 6. Nc3 {[%clk 01:26:25]} {[%emt
00:00:38]} d6 {[%clk 01:28:59]} {[%emt 00:00:48]} 7. Bg5 {[%clk 01:26:17]}
{[%emt 00:00:38]} h6 {[%clk 01:29:01]} {[%emt 00:00:28]} 8. Bh4 {[%clk
01:26:39]} {[%emt 00:00:09]} Be6 {[%clk 01:28:36]} {[%emt 00:00:55]} 9. Nd5
{[%clk 01:26:13]} {[%emt 00:00:56]} Bxd5 {[%clk 01:25:07]} {[%emt 00:03:58]} 10.
Bxd5 {[%clk 01:26:04]} {[%emt 00:00:39]} Kh7 {[%clk 01:20:42]} {[%emt
00:04:54]} 11. a3 {[%clk 01:24:19]} {[%emt 00:02:15]} Qe7 {[%clk 01:18:40]}
{[%emt 00:02:30]} 12. Qe2 {[%clk 01:22:50]} {[%emt 00:02:01]} Rg8 {[%clk
01:16:44]} {[%emt 00:02:26]} 13. Bg3 {[%clk 01:21:06]} {[%emt 00:02:14]} Nxd5
{[%clk 01:15:32]} {[%emt 00:01:43]} 14. exd5 {[%clk 01:21:13]} {[%emt
00:00:24]} Nd4 {[%clk 01:13:10]} {[%emt 00:02:51]} 15. Qe4+ {[%clk 01:21:10]}
{[%emt 00:00:32]} f5 {[%clk 01:13:11]} {[%emt 00:00:30]} 16. Qh4 {[%clk
01:20:09]} {[%emt 00:01:31]} g5 {[%clk 01:10:26]} {[%emt 00:03:15]} 17. Qh5
{[%clk 01:19:20]} {[%emt 00:01:19]} f4 {[%clk 01:08:04]} {[%emt 00:02:52]} 18.
b4 {[%clk 01:19:22]} {[%emt 00:00:28]} Bb6 {[%clk 01:08:00]} {[%emt 00:00:33]}
19. Bxf4 {[%clk 01:16:44]} {[%emt 00:03:09]} Ne2+ {[%clk 01:06:49]} {[%emt
00:01:40]} 20. Kh1 {[%clk 01:16:48]} {[%emt 00:00:27]} Nxf4 {[%clk 01:07:03]}
{[%emt 00:00:16]} 21. Qg4 {[%clk 01:16:56]} {[%emt 00:00:21]} Raf8 {[%clk
01:06:23]} {[%emt 00:01:10]} 22. Rfe1 {[%clk 01:17:20]} {[%emt 00:00:07]} Bxf2
{[%clk 01:06:11]} {[%emt 00:00:42]} 23. Re4 {[%clk 01:17:31]} {[%emt 00:00:18]}
h5 {[%clk 01:06:15]} {[%emt 00:00:26]} 0-1

[Event "Polofinale MCR juniorek 2023"]
[Site "Czech Republic"]
[Date "2023.11.15"]
[Round "6.11"]
[White "Stavova, Marketa"]
[Black "Reznickova, Sibyla"]
[Result "1/2-1/2"]
[TimeControl "90 min per 40 moves + 15 min + 30 sec / move from move 1"]
[WhiteFideId "23714824"]
[BlackFideId "398721"]
[WhiteElo "1433"]
[BlackElo "1413"]

1. e4 {[%clk 01:30:57]} {[%emt 00:00:02]} d5 {[%emt 00:00:10]} 2. exd5 {[%clk
01:31:13]} {[%emt 00:00:12]} Qxd5 {[%clk 01:31:08]} {[%emt 00:00:14]} 3. Nc3
{[%clk 01:31:16]} {[%emt 00:00:27]} Qa5 {[%clk 01:31:14]} {[%emt 00:00:25]} 4.
d4 {[%clk 01:31:19]} {[%emt 00:00:27]} c6 {[%clk 01:31:11]} {[%emt 00:00:33]} 5.
Nf3 {[%clk 01:30:49]} {[%emt 00:01:00]} Bg4 {[%clk 01:30:15]} {[%emt 00:01:26]}
6. Be2 {[%clk 01:30:44]} {[%emt 00:00:36]} e6 {[%emt 00:01:38]} 7. O-O {[%clk
01:30:13]} {[%emt 00:00:59]} Bb4 {[%emt 00:03:21]} 8. Bd2 {[%clk 01:29:32]}
{[%emt 00:00:43]} Nf6 {[%clk 01:23:56]} {[%emt 00:03:19]} 9. a3 {[%clk
01:28:32]} {[%emt 00:01:30]} Be7 {[%emt 00:08:54]} 10. Ne5 {[%clk 01:21:27]}
{[%emt 00:05:24]} Bxe2 {[%clk 01:15:32]} {[%emt 00:02:41]} 11. Nxe2 {[%clk
01:21:11]} {[%emt 00:00:45]} Qc7 {[%clk 01:10:48]} {[%emt 00:05:14]} 12. h3
{[%clk 01:18:07]} {[%emt 00:03:34]} Nbd7 {[%clk 01:07:53]} {[%emt 00:03:25]} 13.
Nxd7 {[%clk 01:16:04]} {[%emt 00:02:34]} Qxd7 {[%clk 01:04:29]} {[%emt
00:03:54]} 14. Be3 {[%clk 01:14:02]} {[%emt 00:02:31]} Rg8 {[%clk 01:01:51]}
{[%emt 00:03:08]} 15. Nf4 {[%clk 01:08:54]} {[%emt 00:05:38]} g5 {[%clk
00:50:51]} {[%emt 00:11:30]} 16. Nh5 {[%clk 01:06:55]} {[%emt 00:02:28]} O-O-O
{[%clk 00:49:45]} {[%emt 00:01:37]} 17. Nxf6 {[%clk 01:01:42]} {[%emt
00:05:43]} Bxf6 {[%clk 00:49:26]} {[%emt 00:00:49]} 18. c3 {[%clk 01:01:39]}
{[%emt 00:00:32]} Rg7 {[%clk 00:47:36]} {[%emt 00:02:20]} 19. Kh2 {[%clk
00:59:49]} {[%emt 00:02:20]} Rdg8 {[%clk 00:46:44]} {[%emt 00:01:22]} 20. g3
{[%clk 00:58:58]} {[%emt 00:01:21]} g4 {[%clk 00:43:50]} {[%emt 00:03:24]} 21.
h4 {[%clk 00:58:21]} {[%emt 00:01:07]} Qd5 {[%clk 00:25:14]} {[%emt 00:19:06]}
22. Bf4 {[%clk 00:56:02]} {[%emt 00:02:49]} Qh5 {[%clk 00:21:11]} {[%emt
00:04:33]} 23. Rh1 {[%clk 00:53:58]} {[%emt 00:02:34]} e5 {[%clk 00:18:15]}
{[%emt 00:03:26]} 24. dxe5 {[%clk 00:53:32]} {[%emt 00:00:57]} Bxe5 {[%clk
00:18:10]} {[%emt 00:00:35]} 25. Bxe5 {[%clk 00:52:42]} {[%emt 00:01:19]} Qxe5
{[%clk 00:18:33]} {[%emt 00:00:07]} 26. Qc2 {[%clk 00:51:57]} {[%emt 00:01:15]}
1/2-1/2